bitfinex/quotes_ETHUSD_20250411
["timestamp","ask_amount","ask_price","bid_price","bid_amount"]
[1744336064248,6.50536,1537.2,1536.9,6.50652]
[1744336064452,6.50496,1537.3,1537.0,1.2712]
[1744336064634,6.50568,1537.2,1536.8,4.2712]
[1744336064809,7.88961,1537.4,1536.8,1.2712]
[1744336065009,7.88961,1537.4,1536.9,6.50622]
[1744336065010,6.50506,1537.3,1536.9,6.50622]
[1744336065214,6.50551,1537.2,1536.9,0.58255036]
[1744336065526,0.55,1537.3,1536.9,7.08913036]
[1744336066464,6.50255,1537.9,1537.4,7.77565]
[1744336066614,14.784212,1538.0,1537.4,14.27978]
[1744336066813,8.281962,1538.0,1537.4,14.27978]
[1744336067016,8.281962,1538.0,1537.5,6.50399]
[1744336067312,0.395092,1538.0,1537.7,3.0]
[1744336067558,0.395092,1538.0,1537.8,1.2712]
[1744336068219,0.395092,1538.0,1537.9,3.0]
[1744336068421,0.395092,1538.0,1537.9,10.77357]
[1744336068629,0.395092,1538.0,1537.9,19.597428]
[1744336068833,0.395092,1538.0,1537.9,11.92924663]
[1744336069168,0.1,1538.4,1538.1,6.50131]
[1744336069459,0.1,1538.4,1538.3,10.77188]
[1744336069680,0.1,1538.4,1538.3,1.2712]
[1744336069983,0.1,1538.4,1538.3,10.77188]
[1744336070676,0.1,1538.4,1538.2,6.50083]
[1744336070677,0.1,1538.4,1538.1,6.50145]
[1744336070983,6.6005,1538.4,1538.1,1.2712]
[1744336071271,0.1,1538.4,1538.2,6.50104]
[1744336071479,0.1,1538.4,1538.3,9.50068]
[1744336071647,0.1,1538.4,1538.3,3.0]
[1744336072061,0.1,1538.4,1538.3,9.50068]
[1744336072452,0.1,1538.4,1538.1,1.2712]
[1744336072643,0.1,1538.4,1538.3,6.50068]
[1744336073341,0.395092,1539.6,1538.8,1.2712]
[1744336073545,0.395092,1539.6,1539.3,6.49612]
[1744336073747,0.395092,1539.6,1539.5,6.49561]
[1744336073938,0.395092,1539.6,1539.5,9.49561]
[1744336074152,0.395092,1539.6,1539.5,10.76681]
[1744336074352,0.395092,1539.6,1539.5,11.24986513]
[1744336075057,0.395092,1539.6,1539.2,1.2712]
[1744336075239,0.395092,1539.6,1539.4,6.49602]
[1744336075566,6.49588,1539.5,1539.2,1.2712]
[1744336075771,6.49696,1539.2,1538.9,1.2712]
[1744336076075,6.49705,1539.2,1538.9,1.2712]
[1744336076248,6.4973,1539.1,1538.8,0.47793854]
[1744336076447,6.4973,1539.1,1538.6,7.75904]
[1744336076778,6.4973,1539.1,1538.6,14.25825]
[1744336076940,7.20203,1539.1,1538.6,14.25827]
[1744336077143,7.145638,1539.4,1538.9,6.49782]
[1744336077344,13.641988,1539.4,1538.9,6.49782]
[1744336077781,6.49713,1539.2,1538.8,0.48086231]
[1744336077947,6.49713,1539.2,1538.7,15.99771]
[1744336078463,0.55,1539.3,1538.7,9.49877]
[1744336078667,6.49763,1539.1,1538.7,3.0]
[1744336078866,6.49763,1539.1,1538.7,9.49897]
[1744336079063,6.49646,1539.3,1538.6,4.2599]
[1744336079270,6.49606,1539.4,1538.9,6.49799]
[1744336079444,6.49606,1539.4,1539.0,6.4977]
[1744336079645,12.99245,1539.4,1538.9,6.49799]
[1744336079878,6.49689,1539.2,1538.8,0.48155351]
[1744336080175,6.49689,1539.2,1538.7,6.49895]
[1744336080176,15.114312,1539.6,1539.1,6.49695]
[1744336080342,0.395092,1539.6,1539.4,6.49576]
[1744336080544,0.395092,1539.6,1539.5,3.0]
[1744336080783,0.395092,1539.6,1539.5,9.49561]
[1744336081150,0.395092,1539.6,1539.5,10.75551]
[1744336081546,1.4022,1540.4,1539.5,10.75551]
[1744336081547,0.1,1540.4,1540.3,10.75214]
[1744336082083,0.1,1540.4,1540.3,1.2599]
[1744336082380,0.1,1540.4,1540.3,7.75214]
[1744336082686,0.1,1540.4,1540.3,8.23987914]
[1744336083240,0.1,1540.4,1540.3,14.79969617]
[1744336083665,0.1,1540.4,1540.3,11.23987914]
[1744336083894,0.395092,1541.1,1540.7,6.49021]
[1744336084187,0.395092,1541.1,1540.8,6.49012]
[1744336084356,0.395092,1541.1,1540.7,6.49021]
[1744336084546,7.7026282,1541.1,1540.6,6.4909]
[1744336084747,6.49044,1540.8,1540.3,7.75191]
[1744336084981,6.48977,1540.9,1540.4,6.49162]
[1744336085150,6.48977,1540.9,1540.4,6.49159]
[1744336085351,15.099548,1540.9,1540.4,6.49159]
[1744336085572,15.099548,1540.9,1540.3,7.75209]
[1744336085573,6.49097,1540.7,1540.3,1.2599]
[1744336085960,6.4913,1540.6,1540.1,6.49307]
[1744336086155,6.49243,1540.3,1540.0,1.2783]
[1744336086354,8.768,1540.6,1540.0,1.2783]
[1744336086355,6.49185,1540.4,1540.0,1.2783]
[1744336086556,6.49228,1540.3,1539.8,6.49414]
[1744336086884,6.49234,1540.3,1539.9,9.49391]
[1744336087097,6.49305,1540.2,1539.8,0.48197499]
[1744336087253,6.49226,1540.3,1539.9,6.49372]
[1744336087453,6.4927,1540.2,1539.7,7.77303]
[1744336087789,6.49345,1540.1,1539.7,1.2783]
[1744336087971,0.55,1540.2,1539.5,1.77302256]
[1744336088280,1.3831,1539.8,1539.2,1.2783]
[1744336088492,7.87644,1540.1,1539.6,12.99019]
[1744336088651,7.87644,1540.1,1539.6,6.49503]
[1744336088847,6.4939,1540.0,1539.6,6.49519]
[1744336089054,6.49309,1540.1,1539.7,6.49444]
[1744336089274,12.98646,1540.1,1539.6,6.49488]
[1744336089480,6.49351,1540.0,1539.6,6.49488]
[1744336089687,6.49309,1540.1,1539.6,6.49488]
[1744336089878,6.49439,1539.8,1539.5,0.5]
[1744336090267,6.494,1539.9,1539.5,6.9956]
[1744336090574,6.49389,1540.0,1539.6,6.49501]
[1744336090775,6.49463,1539.8,1539.5,0.5]
[1744336091162,14.71,1539.7,1539.5,0.5]
[1744336091466,8.215,1539.7,1539.1,6.4969]
[1744336091672,12.99197,1539.5,1539.1,6.4969]
[1744336091878,6.49596,1539.5,1539.0,6.49747]
[1744336092199,6.49596,1539.5,1539.1,6.4973]
[1744336092397,1.3274,1540.4,1539.5,7.78961]
[1744336092600,1.3274,1540.4,1540.0,6.49328]
[1744336092766,6.49232,1540.3,1539.8,6.49423]
[1744336092962,7.81937,1540.4,1540.0,6.49325]
[1744336093162,1.3274,1540.4,1540.1,6.49292]
[1744336093412,6.4924,1540.3,1539.8,6.4943]
[1744336093599,6.4924,1540.3,1539.7,3.0]
[1744336093600,12.98477,1540.3,1539.7,3.0]
[1744336093895,6.49321,1540.1,1539.7,6.49471]
[1744336094065,6.49396,1539.9,1539.5,7.78944]
[1744336094266,6.49355,1540.0,1539.5,1.294]
[1744336094465,6.49355,1540.0,1539.5,7.7893]
[1744336094670,6.49398,1539.9,1539.5,7.7893]
[1744336094900,6.49477,1539.7,1539.1,6.06]
[1744336095201,6.49535,1539.6,1539.2,6.49653]
[1744336095403,22.89941,1539.8,1539.4,6.49584]
[1744336095590,2.344941,1539.8,1539.3,6.49622]
[1744336095794,6.49451,1539.8,1539.3,6.49622]
[1744336095988,6.49451,1539.8,1539.4,6.49588]
[1744336096297,7.04412,1539.9,1539.5,6.49535]
[1744336096468,6.49484,1539.7,1539.3,6.49645]
[1744336096670,14.3174,1539.7,1539.3,6.49645]
[1744336096989,6.49572,1539.5,1539.1,6.49723]
[1744336097184,7.04525,1539.6,1539.0,1.294]
[1744336097382,6.49573,1539.5,1539.1,6.49708]
[1744336097814,12.99161,1539.5,1539.1,6.49708]
[1744336097972,6.49703,1539.2,1538.8,7.79256]
[1744336098172,6.49703,1539.2,1538.8,14.29091]
[1744336098378,6.49703,1539.2,1538.8,7.79235]
[1744336099009,7.82385,1539.3,1538.9,6.49809]
[1744336099213,6.49714,1539.2,1538.8,6.49835]
[1744336099436,1.3274,1539.1,1538.9,0.5]
[1744336099728,1.3274,1539.1,1538.3,0.48351597]
[1744336099729,6.49772,1539.0,1538.3,0.48351597]
[1744336100027,7.82481,1539.1,1538.7,6.49882]
[1744336100184,7.82481,1539.1,1538.7,6.49877]
[1744336100525,14.32237,1539.1,1538.7,6.49877]
[1744336100820,6.49773,1539.0,1538.7,6.49877]
[1744336101016,0.55,1539.0,1538.5,6.4998]
[1744336101176,6.49857,1538.8,1538.4,13.00032]
[1744336101381,8.583,1538.8,1538.2,1.294]
[1744336101584,6.50014,1538.5,1538.1,0.1]
[1744336101803,6.50051,1538.4,1538.1,0.1]
[1744336102008,6.50109,1538.3,1538.1,0.1]
[1744336102619,6.50096,1538.3,1538.1,0.1]
[1744336102824,6.50043,1538.4,1538.1,0.1]
[1744336103130,6.5011,1538.2,1538.1,0.1]
[1744336103442,7.8285,1538.2,1538.1,0.1]
[1744336103923,8.3785,1538.2,1538.1,0.1]
[1744336105213,7.8285,1538.2,1538.1,0.1]
[1744336105397,8.584,1538.4,1538.1,6.60143]
[1744336105592,6.49931,1538.7,1538.3,6.50059]
[1744336105996,12.99857,1538.7,1538.3,6.50059]
[1744336106640,12.99857,1538.7,1538.2,6.50107]
[1744336106943,6.49976,1538.6,1538.2,6.50103]
[1744336107663,6.5011,1538.2,1538.1,0.1]
[1744336108638,1.3738,1538.4,1538.1,0.1]
[1744336108848,6.49948,1538.6,1538.2,6.50093]
[1744336109049,6.49987,1538.5,1538.1,6.60147]
[1744336109426,8.42321,1538.7,1538.1,0.1]
[1744336109626,6.50029,1538.4,1538.1,0.1]
[1744336109867,0.55,1538.4,1538.1,0.1]
[1744336110051,6.50091,1538.3,1538.1,0.1]
[1744336110372,6.5011,1538.2,1538.1,0.1]
[1744336110538,14.37558,1538.3,1538.1,0.1]
[1744336110734,7.87466,1538.3,1538.1,0.1]
[1744336111438,6.5011,1538.2,1538.1,0.1]
[1744336111636,21.58832,1538.5,1538.1,6.60137]
[1744336112045,6.50035,1538.4,1538.1,6.60137]
[1744336112359,6.50035,1538.4,1538.1,6.60145]
[1744336112538,6.50035,1538.4,1538.1,7.251053]
[1744336112744,6.50035,1538.4,1538.1,6.60145]
[1744336112947,15.08808,1538.5,1538.1,13.10283]
[1744336113567,15.08808,1538.5,1538.1,6.60138]
[1744336113767,15.08808,1538.5,1538.1,13.10272]
[1744336114063,8.588,1538.5,1538.1,0.1]
[1744336114281,6.50026,1538.4,1538.1,0.1]
[1744336114563,13.00001,1538.5,1538.1,6.60134]
[1744336114770,6.50027,1538.4,1538.1,6.60134]
[1744336116127,6.49989,1538.5,1538.1,13.10272]
[1744336116334,1.3738,1538.6,1538.2,6.50091]
[1744336116335,6.49952,1538.6,1538.2,6.50091]
[1744336117370,6.49952,1538.6,1538.3,6.50054]
[1744336117870,8.588,1538.7,1538.4,6.50003]
[1744336118057,6.49941,1538.6,1538.1,1.4734]
[1744336118258,6.49941,1538.6,1538.1,1e-05]
[1744336118259,8.4249,1538.2,1538.1,1e-05]
[1744336118451,6.50244,1537.9,1537.4,8.36052367]
[1744336118656,6.50406,1537.5,1537.2,0.49473953]
[1744336118861,7.05279,1537.8,1537.0,8.02021512]
[1744336119063,1.3738,1537.4,1537.0,7.52708394]
[1744336119263,7.87849,1537.4,1537.0,7.52708394]
[1744336119463,6.50556,1537.2,1537.0,7.52708394]
[1744336119664,13.01049,1537.3,1537.0,7.52708394]
[1744336119867,7.87858,1537.4,1537.0,7.52708394]
[1744336120049,6.50505,1537.3,1537.0,7.52708394]
[1744336120258,1.3738,1537.4,1537.0,7.52708394]
[1744336120259,6.50575,1537.1,1537.0,7.52708394]
[1744336120434,11.264909,1537.1,1537.0,7.52708394]
[1744336120777,7.8785,1537.4,1537.0,14.03303394]
[1744336120981,6.50408,1537.5,1537.0,14.03303394]
[1744336121161,15.09366,1537.6,1537.1,6.50553]
[1744336121526,15.09366,1537.6,1537.1,6.50545]
[1744336121729,15.09366,1537.6,1537.2,6.50512]
[1744336122175,8.59,1537.6,1537.3,6.50489]
[1744336122389,8.59,1537.6,1537.2,6.50529]
[1744336122554,15.09382,1537.6,1537.2,6.50529]
[1744336122750,15.09382,1537.6,1537.1,6.50554]
[1744336122951,6.50418,1537.5,1537.1,6.50554]
[1744336123163,2.1598,1537.5,1537.1,13.01111]
[1744336123467,2.1598,1537.5,1537.2,6.50533]
[1744336123684,15.09382,1537.6,1537.2,6.50533]
[1744336124565,15.09382,1537.6,1537.1,6.50554]
[1744336124751,6.50415,1537.5,1537.1,6.50554]
[1744336125293,15.09382,1537.6,1537.2,6.50525]
[1744336125856,6.5041,1537.5,1537.1,6.50554]
[1744336126093,6.50382,1537.6,1537.1,6.50547]
[1744336126394,7.85513,1537.9,1537.5,6.50405]
[1744336127598,6.50287,1537.8,1537.4,6.50415]
[1744336127979,0.55,1537.8,1537.2,6.50499]
[1744336128151,6.50364,1537.6,1537.2,6.50499]
[1744336128351,7.804328,1537.6,1537.1,9.50568]
[1744336128599,6.50426,1537.5,1537.1,9.50568]
[1744336128756,6.50426,1537.5,1537.1,6.50559]
[1744336129292,14.308318,1537.6,1537.2,6.50527]
[1744336129796,6.50406,1537.5,1537.2,6.50527]
[1744336129999,14.308268,1537.6,1537.2,6.50527]
[1744336130195,7.804358,1537.6,1537.2,13.01043]
[1744336130399,6.50465,1537.4,1537.0,7.76907]
[1744336130599,6.50465,1537.4,1537.0,14.27521]
[1744336130911,13.01132,1537.2,1536.8,7.77003]
[1744336131566,6.50566,1537.2,1536.8,14.27685]
[1744336131767,15.8086858,1537.5,1537.0,6.50584]
[1744336131999,6.50458,1537.4,1537.0,13.01185]
[1744336132197,6.50458,1537.4,1537.0,13.01181]
[1744336132397,6.50458,1537.4,1537.0,6.50584]
[1744336132693,6.50458,1537.4,1536.9,6.50654]
[1744336132694,6.50522,1537.3,1536.9,6.50654]
[1744336132999,6.50561,1537.2,1536.8,17.27684]
[1744336133196,7.85746,1537.3,1536.9,6.50656]
[1744336133510,15.24058258,1537.4,1537.0,6.50601]
[1744336133677,1.52405826,1537.3,1536.8,10.76992]
[1744336133876,6.50498,1537.3,1536.9,6.50626]
[1744336134066,6.50463,1537.4,1537.1,6.5056]
[1744336134407,14.36095,1537.5,1537.1,6.5056]
[1744336134577,6.5045,1537.4,1537.1,6.5056]
[1744336134774,6.50453,1537.4,1537.1,6.5056]
[1744336135107,6.50453,1537.4,1536.9,6.50636]
[1744336135108,6.50453,1537.4,1537.0,13.01206]
[1744336135495,13.00924,1537.4,1537.0,6.50598]
[1744336135691,14.14913383,1537.4,1537.0,6.50598]
[1744336135894,7.64442383,1537.4,1537.0,13.01202]
[1744336136092,14.14913383,1537.4,1537.0,6.50598]
[1744336136289,7.64442383,1537.4,1537.1,6.50574]
[1744336136493,1.3525,1537.5,1537.3,6.50459]
[1744336136696,8.524,1537.6,1537.3,6.50459]
[1744336136995,8.524,1537.6,1537.3,13.00933]
[1744336137175,6.50406,1537.5,1537.0,6.50616]
[1744336137384,8.524,1537.6,1537.0,6.50616]
[1744336137385,6.50496,1537.3,1537.0,6.50616]
[1744336138115,7.155036,1537.4,1537.1,6.50555]
[1744336138911,13.659736,1537.4,1537.1,6.50555]
[1744336139314,0.650406,1537.4,1537.1,6.50554]
[1744336139484,7.155016,1537.4,1537.1,6.50554]
[1744336139691,14.948236,1537.4,1537.0,13.01222]
[1744336139884,1.938906,1537.4,1537.1,6.50542]
[1744336140086,0.650406,1537.4,1537.1,6.50542]
[1744336140383,6.50411,1537.5,1537.1,6.50542]
[1744336140583,13.0094,1537.4,1537.0,6.50609]
[1744336140792,6.50564,1537.2,1536.9,7.83468]
[1744336141187,6.50423,1537.5,1536.9,1.3281]
[1744336141397,6.50423,1537.5,1537.1,6.50542]
[1744336141591,8.786272,1537.5,1537.1,6.50542]
[1744336141979,8.786272,1537.5,1537.2,6.50532]
[1744336142179,16.31619,1537.6,1537.2,13.01052]
[1744336142482,16.31619,1537.6,1537.3,6.50486]
[1744336142707,8.524,1537.6,1537.3,6.50472]
[1744336143089,15.02764,1537.6,1537.2,13.01058]
[1744336143420,15.02764,1537.6,1537.3,6.50489]
[1744336143718,7.79104,1537.9,1537.5,13.00746]
[1744336144217,14.29363,1537.9,1537.5,6.50369]
[1744336144604,6.5031,1537.8,1537.4,13.00868]
[1744336144801,6.50367,1537.6,1537.2,9.50498]
[1744336145183,6.50323,1537.7,1537.3,6.50467]
[1744336145414,7.803835,1537.7,1537.3,6.50467]
[1744336146030,14.307335,1537.7,1537.3,6.50467]
[1744336146417,6.50367,1537.6,1537.3,6.50467]
[1744336146616,6.50373,1537.6,1537.2,6.50502]
[1744336146918,6.50373,1537.6,1537.1,0.49436295]
[1744336146919,1.2885,1537.5,1537.1,0.49436295]
[1744336147119,6.50548,1537.2,1536.9,6.50657]
[1744336147621,6.50601,1537.1,1536.7,19.07466]
[1744336147921,6.50601,1537.1,1536.8,0.93775752]
[1744336148128,7.156611,1537.1,1536.9,0.58595067]
[1744336148623,0.650601,1537.1,1536.9,0.58595067]
[1744336148795,7.156371,1537.1,1536.9,0.58595067]
[1744336149199,6.50463,1537.4,1537.0,6.50576]
[1744336149581,14.29701,1537.5,1537.1,6.50554]
[1744336149781,15.02766,1537.6,1537.3,6.50476]
[1744336149982,8.524,1537.6,1537.3,6.50476]
[1744336150287,1.2885,1538.0,1537.5,6.50406]
[1744336150485,15.0266,1538.1,1537.7,6.50302]
[1744336150803,21.52836,1538.1,1537.7,6.50302]
[1744336151028,6.50271,1537.9,1537.6,0.35117045]
[1744336151203,1.2885,1537.8,1537.5,12.5639]
[1744336151718,7.79131,1537.8,1537.5,6.06]
[1744336151920,6.50352,1537.7,1537.2,17.40287]
[1744336152222,6.50382,1537.6,1537.3,0.58562508]
[1744336152431,6.50432,1537.5,1537.3,1.17126797]
[1744336152634,7.154752,1537.5,1537.3,1.17126797]
[1744336152804,7.154752,1537.5,1537.3,0.58564289]
[1744336153197,13.659062,1537.5,1537.2,1.17119534]
[1744336153716,13.659062,1537.5,1537.2,0.58564289]
[1744336153920,6.50457,1537.4,1537.2,0.58564289]
[1744336154113,7.8704772,1537.4,1537.0,7.8405]
[1744336154327,6.50533,1537.2,1537.1,0.58553538]
[1744336154501,13.01101,1537.2,1536.8,6.50702]
[1744336154706,6.50533,1537.2,1536.9,0.35146863]
[1744336155214,6.50589,1537.1,1536.9,0.35146863]
[1744336155519,7.89172,1537.4,1536.9,0.83640154]
[1744336155731,6.50507,1537.3,1536.9,8.19239863]
[1744336155899,6.50507,1537.3,1537.0,0.58555151]
[1744336157631,6.50547,1537.2,1537.0,0.58555151]
[1744336157833,7.05575,1537.1,1537.0,0.58555151]
[1744336158238,7.05575,1537.1,1536.8,10.09255151]
[1744336158510,7.05575,1537.1,1536.9,0.58561781]
[1744336158905,14.917862,1537.1,1536.9,0.58561781]
[1744336159338,14.917862,1537.1,1536.8,0.58561781]
[1744336159635,6.50618,1537.0,1536.8,0.58561781]
[1744336161246,6.5066,1536.9,1536.8,0.58561781]
[1744336161406,7.89328,1537.0,1536.8,0.58561781]
[1744336161601,7.89328,1537.0,1536.7,0.58561781]
[1744336161806,14.39971,1537.0,1536.7,0.58561781]
[1744336162219,7.89328,1537.0,1536.7,0.58561781]
[1744336162536,6.50371,1537.6,1537.2,6.50519]
[1744336162723,6.50406,1537.5,1536.8,13.90135]
[1744336163036,6.50547,1537.2,1536.9,10.09213781]
[1744336163230,6.50493,1537.3,1536.9,16.59853781]
[1744336163437,14.504796,1537.3,1537.0,0.58561781]
[1744336163936,7.999586,1537.3,1537.0,0.58561781]
[1744336164452,6.50575,1537.1,1537.0,0.58561781]
[1744336164735,6.50575,1537.1,1536.6,8.33167592]
[1744336164736,13.56286,1537.0,1536.6,8.33167592]
[1744336164937,13.56286,1537.0,1536.6,7.84222]
[1744336165114,13.56286,1537.0,1536.7,1.52277693]
[1744336165435,7.89292,1537.1,1536.7,1.52277693]
[1744336165627,7.0555,1537.2,1536.8,13.59964287]
[1744336165934,7.0555,1537.2,1536.8,7.09266287]
[1744336166142,7.0555,1537.2,1536.6,1.3345]
[1744336166143,6.50625,1537.0,1536.6,1.3345]
[1744336166306,6.50589,1537.1,1536.7,13.01444]
[1744336166803,13.01188,1537.1,1536.7,6.50715]
[1744336167036,13.01188,1537.1,1536.8,0.35112128]
[1744336167218,6.50589,1537.1,1536.8,0.93631112]
[1744336167637,6.50589,1537.1,1536.8,0.58518984]
[1744336167844,6.50643,1537.0,1536.7,3.0]
[1744336168246,13.01173,1537.1,1536.8,0.58522341]
[1744336168574,13.01189,1537.1,1536.8,0.58522341]
[1744336169762,6.50582,1537.1,1536.8,0.58522341]
[1744336169972,13.01178,1537.1,1536.8,7.09220341]
[1744336170458,13.01178,1537.1,1536.8,0.58522341]
[1744336171326,6.50582,1537.1,1536.8,0.58522341]
[1744336171662,13.01184,1537.1,1536.8,0.58522341]
[1744336172568,13.0119,1537.1,1536.8,0.58522341]
[1744336173254,6.50582,1537.1,1536.8,7.09211341]
[1744336173655,6.50582,1537.1,1536.8,6.50689]
[1744336173970,1.3871,1537.3,1536.9,3.0]
[1744336174133,13.00936,1537.4,1537.0,14.3801]
[1744336174468,13.00936,1537.4,1537.0,7.87405]
[1744336175172,6.50494,1537.3,1537.0,7.87405]
[1744336177476,6.50592,1537.1,1536.8,3.0]
[1744336177772,6.50592,1537.1,1536.9,0.58565739]
[1744336178375,7.81123,1537.2,1536.9,0.58565739]
[1744336179174,14.31677,1537.2,1536.9,0.58565739]
[1744336179537,7.81123,1537.2,1536.9,7.09221739]
[1744336179770,7.81123,1537.2,1536.9,6.50656]
[1744336180178,7.81123,1537.2,1537.0,0.35122452]
[1744336180484,14.73896,1537.3,1537.0,0.8476384]
[1744336180778,8.234,1537.3,1537.0,6.50603]
[1744336180980,6.5059,1537.1,1536.8,3.0]
[1744336181164,6.50537,1537.2,1536.8,16.01389]
[1744336181339,14.73892,1537.3,1536.9,0.93706276]
[1744336181546,14.73892,1537.3,1537.0,3.58554396]
[1744336181745,14.73892,1537.3,1537.0,4.17132817]
[1744336182083,21.24411,1537.3,1537.1,0.58554396]
[1744336182283,23.423521,1537.3,1537.1,0.58554396]
[1744336182485,23.423521,1537.3,1537.0,3.58578421]
[1744336182785,6.50536,1537.2,1537.0,3.0]
[1744336183280,6.50642,1537.0,1536.7,10.87525]
[1744336183492,7.05575,1537.1,1536.8,0.15]
[1744336183673,7.05575,1537.1,1536.9,0.58623806]
[1744336184177,0.55,1537.1,1536.8,7.09321806]
[1744336184486,0.55,1537.1,1536.9,0.58623806]
[1744336184654,7.05591,1537.1,1536.9,1.17199396]
[1744336184985,0.55,1537.0,1536.9,0.5857559]
[1744336185358,0.55,1537.0,1536.8,1.17139514]
[1744336185670,13.56267,1537.0,1536.9,0.58563924]
[1744336185860,7.05618,1537.0,1536.9,0.58563924]
[1744336186058,7.05618,1537.0,1536.9,0.35168398]
[1744336186266,8.4968711,1537.0,1536.9,0.35168398]
[1744336186890,7.05699,1536.9,1536.6,0.35168398]
[1744336187182,13.56385,1536.9,1536.6,0.35168398]
[1744336187352,13.56385,1536.9,1536.7,0.58620447]
[1744336187672,13.56385,1536.9,1536.8,0.35168398]
[1744336188060,7.05686,1536.9,1536.8,0.93802411]
[1744336188399,6.50624,1537.0,1536.8,0.93802411]
[1744336188577,13.01268,1537.0,1536.8,0.93802411]
[1744336189186,13.01268,1537.0,1536.8,0.58634013]
[1744336189461,13.01268,1537.0,1536.6,13.49130114]
[1744336189462,6.50624,1537.0,1536.6,13.49130114]
[1744336189754,13.01263,1537.0,1536.6,13.49130114]
[1744336190061,13.01263,1537.0,1536.7,1.52427946]
[1744336190278,13.01263,1537.0,1536.8,0.58625444]
[1744336190482,13.01265,1537.0,1536.8,0.58625444]
[1744336190650,7.350681,1537.1,1536.8,0.58625444]
[1744336190859,16.67949,1537.2,1536.8,7.09310444]
[1744336191069,6.50576,1537.1,1536.9,0.93792101]
[1744336192001,6.50576,1537.1,1536.9,0.58627851]
[1744336192164,6.50576,1537.1,1536.8,6.50684]
[1744336192365,6.50576,1537.1,1536.9,0.58596982]
[1744336192675,23.18493,1537.2,1536.9,0.58596982]
[1744336192874,22.63509,1537.2,1536.9,0.58596982]
[1744336193080,25.1165401,1537.2,1536.9,0.58596982]
[1744336193258,22.63509,1537.2,1537.0,0.35155259]
[1744336193654,14.40409,1537.2,1537.0,0.35155259]
[1744336194193,14.40409,1537.2,1536.9,0.35155259]
[1744336194592,14.40409,1537.2,1537.0,0.58600019]
[1744336195293,14.40409,1537.2,1536.9,0.58600019]
[1744336195492,6.50576,1537.1,1536.9,0.58600019]
[1744336195707,7.89839,1537.2,1536.9,3.58600019]
[1744336195989,6.50539,1537.2,1537.0,0.58592991]
[1744336196194,6.50493,1537.3,1537.0,7.4436909]
[1744336196398,22.63325,1537.4,1537.1,0.58600019]
[1744336196608,6.50498,1537.3,1537.1,0.58600019]
[1744336197258,6.50533,1537.2,1537.1,0.58600019]
[1744336197458,6.50498,1537.3,1537.0,0.58600019]
[1744336197658,6.50498,1537.3,1537.1,0.35156198]
[1744336197890,13.0101,1537.3,1537.1,0.35156198]
[1744336198187,15.32851,1537.3,1537.1,0.35156198]
[1744336198696,15.32851,1537.3,1537.0,0.35156198]
[1744336199307,15.32851,1537.3,1537.1,0.58582991]
[1744336199461,6.50533,1537.2,1537.1,0.58582991]
[1744336199655,6.50533,1537.2,1537.0,0.35156198]
[1744336199656,6.50575,1537.1,1537.0,0.35156198]
[1744336200093,6.50575,1537.1,1536.8,7.366]
[1744336200094,6.50618,1537.0,1536.9,0.35156198]
[1744336200461,6.50618,1537.0,1536.9,0.93749388]
[1744336200999,7.05618,1537.0,1536.9,0.93749388]
[1744336201159,8.357373,1537.0,1536.9,0.93749388]
[1744336201556,8.357373,1537.0,1536.9,0.35156198]
[1744336201797,6.50702,1536.8,1536.7,0.35156198]
[1744336201997,6.50702,1536.8,1536.7,0.93794391]
[1744336202496,6.50702,1536.8,1536.7,1.52436321]
[1744336203497,13.01342,1536.9,1536.7,1.52436321]
[1744336203701,13.01342,1536.9,1536.7,0.93798128]
[1744336203999,13.01342,1536.9,1536.7,0.35156198]
[1744336204500,13.01342,1536.9,1536.6,0.35156198]
[1744336204671,13.01342,1536.9,1536.7,0.58632607]
[1744336206010,7.80053,1537.1,1536.8,1.6319644]
[1744336206210,7.80053,1537.1,1536.8,2.21823493]
[1744336206379,6.50622,1537.0,1536.8,2.21823493]
[1744336206583,6.50622,1537.0,1536.9,0.58632607]
[1744336206763,6.50622,1537.0,1536.9,0.93809047]
[1744336206964,7.80053,1537.1,1536.9,0.3517644]
[1744336207769,7.05536,1537.2,1536.9,0.3517644]
[1744336208082,6.50595,1537.1,1536.9,0.3517644]
[1744336208307,14.368031,1537.1,1536.9,0.3517644]
[1744336208512,6.50618,1537.0,1536.9,0.3517644]
[1744336208683,7.05618,1537.0,1536.9,0.3517644]
[1744336208885,0.55,1537.0,1536.9,0.3517644]
[1744336209085,6.50593,1537.1,1536.9,0.93815597]
[1744336209285,6.50593,1537.1,1536.9,1.17270098]
[1744336209802,6.50618,1537.0,1536.7,9.50727]
[1744336209983,13.01257,1537.0,1536.7,3.0]
[1744336210182,6.50663,1536.9,1536.7,3.0]
[1744336210612,6.50663,1536.9,1536.8,1.1722679]
[1744336210910,6.50663,1536.9,1536.8,1.52401391]
[1744336210911,7.807911,1536.9,1536.8,1.52401391]
[1744336211615,8.357911,1536.9,1536.8,1.52401391]
[1744336211980,8.357881,1536.9,1536.8,1.52401391]
[1744336213519,6.50618,1537.0,1536.8,1.52401391]
[1744336213724,6.5066,1536.9,1536.8,0.93788949]
[1744336213892,6.16,1537.4,1537.1,6.50553]
[1744336214091,6.5042,1537.5,1537.2,4.24947484]
[1744336214424,6.50449,1537.4,1537.2,4.24947484]
[1744336215329,6.50449,1537.4,1537.2,1.3289]
[1744336217133,6.5042,1537.5,1537.2,1.3289]
[1744336217430,8.38419,1537.6,1537.2,7.83417]
[1744336217596,6.50337,1537.7,1537.3,13.00928]
[1744336217801,6.50243,1537.9,1537.5,14.33662]
[1744336218118,7.05279,1537.8,1537.5,1.3289]